Cogmind - Beta 15 @@@ ROGUE MODE // 2025.06.20 @ 08:39:28 Player: LightKnight Result: Destroyed by D-53 Grenadier with Mini Grenade Launcher Performance ------------- Evolutions (0) 0 Regions Visited (4) 800 Robots Destroyed (23) 115 Value Destroyed (422) 422 Prototype IDs (26) 520 Alien Tech Used (0) 0 Bonus (314) 314 TOTAL SCORE: 2171 Bonus ------- Follower Combat Kills 14 Aligned with FarCom 300 Cogmind --------- Core Integrity 0/250 Matter 281/300 Energy 91/250 System Corruption 0% Temperature Cool (10) Movement Treading (320) Ox2 Location -9/Mines Parts ------- > --- POWER (1) -------- Ion Engine > --- PROPULSION (2) --- Light Treads > --- UTILITY (2) ------ High-capacity Storage Unit Targeting Computer > --- WEAPON (2) ------- Beam Cannon > --- INVENTORY (20) --- Nuclear Core Reinforced Deuterium Engine Fission Core Light Treads High-capacity Matter Pod (200) Experimental Sensor Array 0b10 Alert Chip Grenade Launcher Peak State ------------ > --- POWER ------------ Improved Ion Engine > --- PROPULSION ------- Light Treads Light Treads > --- UTILITY ---------- High-capacity Storage Unit Targeting Computer > --- WEAPON ----------- Assault Rifle Light Assault Rifle > --- INVENTORY -------- Ion Engine Nuclear Core Reinforced Deuterium Engine Fission Core Light Treads Light Treads High-capacity Matter Pod Experimental Sensor Array 0b10 Alert Chip Beam Cannon Grenade Launcher [Rating: 11] Favorites ----------- Power Ion Engine Engine Ion Engine Propulsion Aluminum Leg Treads Light Treads Leg Aluminum Leg Utility Targeting Computer Storage Medium Storage Unit Processor Targeting Computer Weapon Assault Rifle Energy Gun EM Pulse Gun Energy Cannon Beam Cannon Ballistic Gun Assault Rifle Launcher Grenade Launcher Build | -11 -10 -10 -10 -9 ------- Run | Yrd Mat Min Exi Min Slots Evolved . | . . . . . Power . | . . . . . Propulsion . | . . . . . Utility . | . . . . . Weapon . | . . . . . Parts Attached 17 | . 11 . 3 3 Power 4 | . 3 . . 1 Engine 4 | . 3 . . 1 Core . | . . . . . Reactor . | . . . . . Propulsion 4 | . 1 . 2 1 Treads 3 | . . . 2 1 Leg 1 | . 1 . . . Wheel . | . . . . . Hover . | . . . . . Flight . | . . . . . Utility 3 | . 2 . 1 . Device . | . . . . . Storage 2 | . 1 . 1 . Processor 1 | . 1 . . . Hackware . | . . . . . Protection . | . . . . . Artifact . | . . . . . Weapon 6 | . 5 . . 1 Energy Gun . | . . . . . Energy Cannon 1 | . . . . 1 Ballistic Gun 4 | . 4 . . . Ballistic Cannon . | . . . . . Launcher 1 | . 1 . . . Special Weapon . | . . . . . Impact Weapon . | . . . . . Slashing Weapon . | . . . . . Piercing Weapon . | . . . . . Special Melee Weapon . | . . . . . Unidentified Prototypes . | . . . . . Parts Lost 9 | . 4 . . 5 Power 2 | . 1 . . 1 Propulsion 3 | . 1 . . 2 Utility . | . . . . . Weapon 4 | . 2 . . 2 Highest Loss Streak 5 | . 2 . . 5 To Critical Strikes . | . . . . . Average Backups 8 | . 7 9 9 10 Power . | . . . 1 3 Propulsion 3 | . 3 4 2 1 Utility 2 | . . 2 3 3 Weapon 2 | . 3 3 2 2 Tool/Special . | . . . . . Unused Backups 17 | . 9 . 1 7 Power 4 | . 1 . . 3 Propulsion 5 | . 4 . . 1 Utility 5 | . 2 . . 3 Weapon 3 | . 2 . 1 . Tool/Special . | . . . . . Average Slot Usage (%) 96 | . 89 100 100 99 Engine 14 | . 14 14 14 14 Treads 7 | . . . 16 27 Leg 19 | . 26 28 11 . Storage 14 | . 14 14 14 14 Processor 11 | . 6 14 14 14 Ballistic Gun 27 | . 25 28 28 28 Peak Build Rating 11 | . 7 8 10 11 Average Rating 7 | . 6 7 9 10 On Entrance 7 | 6 6 7 8 10 Naked Turns . | . . . . . Heaviest Build 50 | 11 19 18 48 50 Greatest Support 40 | 20 20 20 40 40 Greatest Overweight (x) 1 | . 1 . 1 1 Average Overweight (x) . | . . . . 1 Largest Inventory Capacity 20 | . 10 10 20 20 Average Capacity 12 | . 8 10 15 20 Most Carried 11 | . 9 10 10 11 Average Carried 8 | . 7 9 9 10 Final Capacity 20 | 8 10 10 20 20 Final Carried 10 | 6 8 10 10 8 Class Distribution -------------------- 100% | Mutant Dominant Class ---------------- Mutant | -10/Materials Mutant | -10/Mines Mutant | -10/Exiles Mutant | -9/Mines Resources | -11 -10 -10 -10 -9 ----------- Run | Yrd Mat Min Exi Min Matter Collected 688 | 200 448 . . 40 Remotely . | . . . . . Salvage Created 563 | . 550 . . 13 Parts 46 | . 44 . . 2 Haulers Intercepted 2 | . 2 . . . Recyclers Shooed 1 | . 1 . . . Parts Field Recycled . | . . . . . Retrieved Matter . | . . . . . Parts Self-Destructed . | . . . . . Prevented . | . . . . . Kills | -11 -10 -10 -10 -9 ------- Run | Yrd Mat Min Exi Min Combat Hostiles Destroyed 18 | . 17 . . 1 Guns 14 | . 13 . . 1 AOE 4 | . 4 . . . Classes Destroyed 5 | . 5 . . . Worker 1 | . 1 . . . Hauler 2 | . 2 . . . Watcher 2 | . 2 . . . Swarmer 10 | . 9 . . 1 Grunt 8 | . 8 . . . Best Kill Streak 5 | . 5 . . 1 Combat Bots Only 4 | . 4 . . 1 Max Kills in Single Turn 3 | . 3 . . 1 Gunslinging . | . . . . . Exploded 3 | . 3 . . . Melee . | . . . . . Uniques/NPCs Destroyed . | . . . . . Combat | -11 -10 -10 -10 -9 -------- Run | Yrd Mat Min Exi Min Hostile Shots Fired 100 | . 81 . . 19 Missed 24 | . 22 . . 2 Hits 76 | . 59 . . 17 Projectile 76 | . 59 . . 17 AOE 19 | . . . . 19 Damage Taken 1325 | . 573 . . 752 Core 261 | . 84 . . 177 Absorbed by Shields . | . . . . . Core Remaining (%) 100 | 100 . . . . Volleys Fired 66 | . 62 . . 4 Largest 2 | . 2 . . 2 Hottest 80 | . 80 . . 60 Shots Fired 128 | . 121 . . 7 Gun 124 | . 118 . . 6 Cannon 1 | . . . . 1 Launcher 3 | . 3 . . . Special . | . . . . . Kinetic 118 | . 112 . . 6 Thermal 4 | . 3 . . 1 Explosive 3 | . 3 . . . Electromagnetic 3 | . 3 . . . Robot Hit Streak 9 | . 6 . . 9 Robot Miss Streak 6 | . 6 . . 1 Penetration Max . | . . . . . Secondary Targets 1 | . 1 . . . Max Gunslinging Chain 1 | . 1 . . . Shots Hit Robots 65 | . 60 . . 5 Core Hits 33 | . 31 . . 2 Critical Kills . | . . . . . Critical Parts Destroyed 2 | . 2 . . . Critical Strikes 2 | . 2 . . . Destroy 2 | . 2 . . . Melee Attacks . | . . . . . Impact . | . . . . . Slashing . | . . . . . Piercing . | . . . . . Sneak Attacks . | . . . . . Combat Hostiles . | . . . . . Follow-up Attacks . | . . . . . Damage Inflicted 1088 | . 994 30 . 64 Guns 753 | . 715 . . 38 Cannons 18 | . . . . 18 Explosions 273 | . 273 . . . Melee . | . . . . . Ramming 44 | . 6 30 . 8 Kinetic 729 | . 691 . . 38 Thermal 18 | . . . . 18 Explosive 273 | . 273 . . . Electromagnetic 24 | . 24 . . . Impact . | . . . . . Slashing . | . . . . . Piercing . | . . . . . Highest Corruption . | . . . . . Average Corruption . | . . . . . Corruption Purged . | . . . . . Corruption Blocked . | . . . . . Overload Shots . | . . . . . Overflow Damage . | . . . . . Projectiles . | . . . . . Explosions . | . . . . . Melee . | . . . . . Knockbacks 1 | . . 1 . . Impact 1 | . . 1 . . Kinetic . | . . . . . Secondary . | . . . . . Self-Inflicted Damage . | . . . . . Shots . | . . . . . Rammed 1 | . . . . 1 Targets Rammed 7 | . 3 3 . 1 Kicked 6 | . 3 3 . . Crushed . | . . . . . Highest Temperature 54 | . 54 . . 10 Average Temperature 17 | . 22 . . 3 Received Heat Transfer 147 | . 147 . . . Siege Activations . | . . . . . Martial Activations . | . . . . . Shielding Activations . | . . . . . Robots Disrupted . | . . . . . Combat Hostiles . | . . . . . Robots Corrupted . | . . . . . Combat Hostiles . | . . . . . Parts Fried . | . . . . . Impact Corruptions . | . . . . . Robots Melted . | . . . . . Combat Hostiles . | . . . . . Parts Melted . | . . . . . Heat Transferred 37 | . . . . 37 Parts Sabotaged . | . . . . . Parts Stolen . | . . . . . Parts Stripped . | . . . . . Power Chain Reactions . | . . . . . Alert | -11 -10 -10 -10 -9 ------- Run | Yrd Mat Min Exi Min Maximum Alert Level . | . . . . . Low Security (%) 100 | . 100 100 . 100 Level 1 . | . . . . . Level 2 . | . . . . . Level 3 . | . . . . . Level 4 . | . . . . . Level 5 . | . . . . . High Security . | . . . . . Max Security . | . . . . . Peak Influence 177 | . 177 52 . 60 Initial 52 | . . 52 . . Average 41 | . 76 4 . 10 Influence Increases 649 | . 569 . . 80 Destroy 0b10 Robot/C 400 | . 340 . . 60 Destroy 0b10 Robot/NC 25 | . 25 . . . Destroy Leader 88 | . 78 . . 10 Allied During Kill 10 | . . . . 10 Successful Hack 22 | . 22 . . . Select Force Hacks 60 | . 60 . . . Destroy Structure 14 | . 14 . . . Lose Combat Pursuer 30 | . 30 . . . Influence Decreases 649 | . 434 135 . 80 Entered New Map 83 | . . 83 . . Time Decay 486 | . 394 52 . 40 Lost Part 40 | . 40 . . . Lost Ally 40 | . . . . 40 Squads Dispatched 3 | . 3 . . . Investigation 3 | . 3 . . . Extermination . | . . . . . Reinforcement . | . . . . . Assault . | . . . . . Garrison . | . . . . . Intercept . | . . . . . Searches Triggered . | . . . . . Construction Impeded . | . . . . . Haulers Reinforced . | . . . . . Active Scanning Responses . | . . . . . Cargo Convoy Interrupts . | . . . . . Stealth | -11 -10 -10 -10 -9 --------- Run | Yrd Mat Min Exi Min Distress Signals 1 | . 1 . . . Communications Jammed . | . . . . . Distress Signals . | . . . . . Times Spotted 30 | . 26 . . 4 Peak Tracking Total 6 | . 6 . . 2 Tactical Retreats 2 | . 2 . . . Traps | -11 -10 -10 -10 -9 ------- Run | Yrd Mat Min Exi Min Traps Triggered 2 | . 2 . . . Indirectly . | . . . . . Trap Hack Attempts . | . . . . . Triggered . | . . . . . Disarmed . | . . . . . Reprogrammed . | . . . . . Reused . | . . . . . Traps Extracted . | . . . . . Installed . | . . . . . Triggered . | . . . . . Machines | -11 -10 -10 -10 -9 ---------- Run | Yrd Mat Min Exi Min Machines Disabled 1 | . 1 . . . Max in Single Turn 1 | . 1 . . . Machines Repaired . | . . . . . Machines Dismantled . | . . . . . Machines Sabotaged . | . . . . . Overloaded Fab Kills . | . . . . . Hacking | -11 -10 -10 -10 -9 --------- Run | Yrd Mat Min Exi Min Machines Accessed 13 | . 10 1 2 . Terminals 8 | . 7 1 . . Fabricators . | . . . . . Repair Stations 1 | . 1 . . . Recycling Units 2 | . 2 . . . Scanalyzers . | . . . . . Garrison Access . | . . . . . Total Hacks 28 | . 25 1 2 . Successful 11 | . 9 . 2 . Failed 17 | . 16 1 . . Catastrophic 3 | . 2 1 . . Database Lockouts . | . . . . . Manual 21 | . 19 1 1 . Terminals 20 | . 19 1 . . Fabricators . | . . . . . Repair Stations 2 | . 2 . . . Recycling Units 4 | . 4 . . . Scanalyzers . | . . . . . Garrison Access . | . . . . . Terminal Hacks 5 | . 3 . 2 . Record 1 | . . . 1 . Robot Analysis 2 | . 2 . . . Prototype ID Bank 1 | . 1 . . . Proto ID Catalog 1 | . . . 1 . Fabricator Hacks . | . . . . . Repair Station Hacks 1 | . 1 . . . Scan Component 1 | . 1 . . . Recycling Unit Hacks . | . . . . . Scanalyzer . | . . . . . Garrison Access Hacks . | . . . . . Unauthorized Hacks 5 | . 5 . . . Terminals 3 | . 3 . . . Botnet 3 | . 3 . . . Fabricators . | . . . . . Repair Stations . | . . . . . Recycling Units 2 | . 2 . . . Tunnel 2 | . 2 . . . Scanalyzers . | . . . . . Garrison Access . | . . . . . Data Cores Recovered . | . . . . . Used . | . . . . . Hacking Detections 9 | . 8 1 . . Full Trace Events . | . . . . . Feedback Events . | . . . . . Feedback Blocked . | . . . . . Robot Schematics Acquired . | . . . . . Robots Built . | . . . . . Authchips . | . . . . . Time . | . . . . . Total Robot Build Rating . | . . . . . Part Schematics Acquired . | . . . . . Parts Built . | . . . . . Authchips . | . . . . . Time . | . . . . . Total Part Build Rating . | . . . . . Parts Repaired . | . . . . . Time . | . . . . . Parts Recycled . | . . . . . Recycled Matter . | . . . . . Retrieved Matter . | . . . . . Retrieved Components . | . . . . . Parts Scanalyzed . | . . . . . Part Schematics Acquired . | . . . . . Parts Damaged . | . . . . . Bothacking | -11 -10 -10 -10 -9 ------------ Run | Yrd Mat Min Exi Min Used RIF Installer . | . . . . . Robots Hacked . | . . . . . Non-combat . | . . . . . Combat . | . . . . . Robot Hacks Applied . | . . . . . Relay Couplers Released . | . . . . . Fabnet Peak Effective % . | . . . . . Robots Rewired . | . . . . . Allies Hacked . | . . . . . Hacks Repelled . | . . . . . Allies | -11 -10 -10 -10 -9 -------- Run | Yrd Mat Min Exi Min Total Allies 6 | . . 6 . . Largest Group 6 | . . 6 6 3 Highest-Rated Group 109 | . . 109 109 40 Highest-Rated Ally 31 | . . 31 31 16 Total Orders 2 | . . 2 . . STAY 1 | . . 1 . . FOLLOW 1 | . . 1 . . Ally Attacks 10 | . . . . 10 Total Damage 88 | . . . . 88 Kills 2 | . . . . 2 Allies Corrupted . | . . . . . Allies Melted . | . . . . . Intel | -11 -10 -10 -10 -9 ------- Run | Yrd Mat Min Exi Min Active Infowar (turns) . | . . . . . Robot Analysis Total 2 | . 2 . . . Derelict Logs Recovered 3 | . . 2 . 1 Drone Launches . | . . . . . Drone Recoveries . | . . . . . Exploration | -11 -10 -10 -10 -9 ------------- Run | Yrd Mat Min Exi Min Turns Passed 2623 | . 1005 656 616 346 Spaces Moved 1646 | 1 618 534 356 137 Core . | . . . . . Treads 288 | . . . 151 137 Legs 1358 | 1 618 534 205 . Wheels . | . . . . . Hover . | . . . . . Flight . | . . . . . Fastest Speed 120 | 120 120 120 120 240 Average Speed 143 | 120 126 120 170 240 Slowest Speed 240 | 120 190 120 240 240 Overloaded Moves . | . . . . . Propulsion Burnouts . | . . . . . Robots Hopped . | . . . . . Potential Cave-ins . | . . . . . Cave-ins Triggered . | . . . . . Exploration Rate (%) 62 | 1 95 98 69 47 Regions Visited 4 Branch Regions 3 Pre-discovered Areas 4 | . 2 . 1 1 Known Exits Taken . | . . . . . Unknown Exits Taken 4 | 1 1 1 1 . Scrap Searched 2 | . . 1 . 1 Spaces Dug . | . . . . . Terrain Destroyed 15 | . 15 . . . Melee . | . . . . . Projectile . | . . . . . AOE 15 | . 15 . . . Terrain Rammed . | . . . . . Walls Destroyed . | . . . . . Machines Disabled . | . . . . . Actions | -11 -10 -10 -10 -9 --------- Run | Yrd Mat Min Exi Min Total 1786 | . 726 548 366 146 Wait 16 | . 6 10 . . Move 1642 | . 617 533 355 137 Hop . | . . . . . Pick Up 18 | . 12 2 4 . Fast Attach 4 | . 4 . . . Attach 9 | . 4 . 2 3 Detach 2 | . 2 . . . Swap 7 | . 5 . 1 1 Drop 15 | . 11 . 4 . Fire 66 | . 62 . . 4 Melee . | . . . . . Ram . | . . . . . Kick 6 | . 3 3 . . Crush 1 | . . . . 1 Escape Stasis . | . . . . . Rewire . | . . . . . Trap . | . . . . . Miscellaneous . | . . . . . Route ------- -11/Scrapyard -10/Materials (discovered 4 exits: [*Mat x3] / *Min) -10/Mines (discovered 4 exits: [*Mat x2] / *Exi / [*Sub]) -10/Exiles -9/Mines History --------- Turn | Location | Event 1 | -11/Scrapyard | Discovered new exit (range 0) 1 | -11/Scrapyard | Entered Materials 324 | -10/Materials | Build established: Mutant 494 | -10/Materials | Discovered new exit (range 10) 513 | -10/Materials | Discovered new exit (range 15) 682 | -10/Materials | Discovered new exit (range 14) 836 | -10/Materials | Discovered new exit (range 15) 1006 | -10/Materials | Entered Mines 1008 | -10/Mines | Assisted by bots powering up and referring to "LRC-V3" 1118 | -10/Mines | Learned Materials security intel 1143 | -10/Mines | Deemed a non-threat by the Exiles lab entrance 1143 | -10/Mines | Discovered new exit (range 5) 1183 | -10/Mines | Found a damaged Exp. Sensor Array with a note attached 1185 | -10/Mines | Found Prototype Device 1239 | -10/Mines | Discovered new exit (range 15) 1440 | -10/Mines | Discovered new exit (range 10) 1456 | -10/Mines | Found DCF Scrap (12 items) 1464 | -10/Mines | Learned Materials terminal intel 1476 | -10/Mines | Received a Mining Laser from a helpful Derelict 1573 | -10/Mines | Discovered new exit (range 9) 1662 | -10/Mines | Entered Exiles 1662 | -10/Exiles | Accompanied by 6 allies 1691 | -10/Exiles | Met 8R-AWN 1692 | -10/Exiles | Led the pair of lost Derelicts to a safe place 1712 | -10/Exiles | Met EX-HEX 1744 | -10/Exiles | Met EX-BIN 1761 | -10/Exiles | Aligned with FarCom system 1762 | -10/Exiles | Given EX-Vault access code 1790 | -10/Exiles | Opened EX-Vault 1799 | -10/Exiles | Found 0b10 Alert Chip 1824 | -10/Exiles | Warned to stay clear of 0b10 Research branches 2115 | -10/Exiles | Met EX-DEC 2168 | -10/Exiles | Learned location of Zion (-6) 2249 | -10/Exiles | Discovered new exit (range 12) 2278 | -10/Exiles | Left Exiles lab with 0b10 Alert Chip 2278 | -10/Exiles | Entered Mines 2278 | -9/Mines | Accompanied by 3 allies 2298 | -9/Mines | Learned Materials emergency access door positions 2584 | -9/Mines | Assembled infested the area 2607 | -9/Mines | Core integrity fell below 50% 2615 | -9/Mines | Core integrity fell below 20% 2624 | -9/Mines | Destroyed by D-53 Grenadier with Mini Grenade Launcher Last Messages --------------- squad. 02599_ Trooper 1a destroyed. 02599_ T-07 Excavator destroyed. 02601_ K-01 Serf collects debris. 02603_ Trooper 1b destroyed. 02604_ T-07 Excavator destroyed. 02605_ K-01 Serf collects debris. 02606_ The unstable cave ceiling collapses. 02609_ K-01 Serf collects debris. 02612_ Imp. Ion Engine destroyed. 02613_ K-01 Serf collects debris. 02616_ Lgt. Treads destroyed. 02617_ K-01 Serf collects debris. 02618_ Lgt. Treads destroyed. 02620_ Lgt. Assault Rifle destroyed. 02620_ D-53 Grenadier destroyed. 02621_ The unstable cave ceiling collapses. 02622_ K-01 Serf collects debris. 02622_ Assault Rifle destroyed. 02624_ The unstable cave ceiling collapses. Map ----- +----------------------------------------------------+ | ????????????????????????# ??# *= #??????## | | ????????????????????????# ??#####%=% ##???????## | | ????????????????????????# ??????# = ##?????????## | | ???????????????????????? ?????## #???????????? | | ???????????????????????? ????## #???????????? | | ???????????????????????? ????# ##???????????? | | ???????????????????????????????# ##????????????? | | ??????????????????????????????## ##????????????? | | ?????????????????????????????## ##???????????? | | ????????????????????????????## ##??????????? | | ???????????????????????????## #??????????? | | ??????????????????#####???## ##??????????? | | ?????????????????## #### ##???????????? | | ????????????????## ## #????????????? | | ????????????????# t #????????????? | | ????????????????# #????????????? | | ????????????????## ##????????????? | | ?????????????????### ####?????????????? | | ???????????????????## ##????????????????? | | ????????????????????# ##????? ??????????? | | ??????????????????### #### ??????????? | | ??????????????????# #??????????? | | ??????????????????# k #???????????? | | ??????????????????# d % ####???????????? | | ?????????????????## ##??????????????? | | ???????????????### @ ####???????????????? | | ???????????????# # #??????????????????? | | ???????????????# # #??????????????????? | | ??????????????# % ???????????????? | | ??????????????# #####??????????????? | | ?????????????# # #?????????????????? | | ????????????# # # u k ???????????????? | | ????????????# # # ## #?????????????? | | ????????????# #### #????????????????? | | ????????????## ????? ##????????????????? | | ?????????????## #????? ##??g??????????????? | | ??????????????## ?????? ##??g???????????????? | | ???????????????## #?????? ##?????g?????????????? | | ????????????????###???????##?????????????????????? | | ?????????????????????????????????????????????????? | | ?????????????????????????????????????????????????? | | ?????????????????????????????????????????????????? | | ?????????????????????????????????????????????????? | | ?????????????????????????????????????????????????? | | | | | | | | | | | | | +----------------------------------------------------+ Best States ------------- Heat Dissipation 25 Energy Generation 12 Energy Capacity 265 Matter Stores 300 Matter Capacity 300 Sight Range 16 Terrain Scan Density 10 Evasion (%) 55 Targeting Accuracy 5 Recoil Reduction 2 Item Schematics ----------------- None Robot Schematics ------------------ None Fabricated ------------ Nothing Repaired ---------- Nothing Alien Tech Used ----------------- None Achievements -------------- None Challenges ------------ None Game ------ Seed GammaTripodShifter Manual? 0 Play Time 00:14:31 Cumulative 338.7 hours Start 2025.06.20 @ 08:26:14 End 2025.06.20 @ 08:39:28 Sessions 1 Manual Loads 0 Difficulty Rogue Special Mode None Game No. 237 Rogue 237 Adventurer 0 Explorer 0 Win Type - Total 26 Types 20/0/4/2/0/0/0/0/0/0 Lore% 88 Gallery% 76 Achievement% 66 Wizard Run 0 Options --------- Layout 0 ASCII 1 Keyboard 1 Movement Arrows Keybinds 0 Fullscreen 2 Font 18/Terminus Map View 76x50 Zoom Use 0% Tactical HUD 1 Map Filters NONE Filters NONE Steam 1 RUN: 38524259-4625-46d6-8230-5e159280f13c